bitfinex-derivatives/quotes_SOLF0:USTF0_20260227
["timestamp","ask_amount","ask_price","bid_price","bid_amount"]
[1772190497636,215.51336917,84.852,84.821,10.82740846]
[1772190497831,12.08,84.86,84.821,10.82740846]
[1772190498428,12.08,84.86,84.829,10.82740846]
[1772190499638,10.79690072,84.859,84.816,10.82740846]
[1772190500038,2.59673387,84.85,84.791,10.82740846]
[1772190500447,2.59673387,84.83,84.791,10.82740846]
[1772190500638,10.79690072,84.839,84.791,10.82740846]
[1772190501138,10.79690072,84.839,84.801,10.6127]
[1772190502750,2.59673387,84.82,84.771,10.82740846]
[1772190502951,13.39363459,84.83,84.771,10.82740846]
[1772190503848,10.6095,84.828,84.783,21.44240846]
[1772190504151,13.39363459,84.83,84.784,10.82740846]
[1772190504544,13.39363459,84.83,84.793,10.6137]
[1772190505947,13.39363459,84.83,84.785,10.82740846]
[1772190507554,2.59673387,84.84,84.785,10.82740846]
[1772190508249,2.59673387,84.83,84.785,10.82740846]
[1772190509954,2.59673387,84.83,84.793,10.6137]
[1772190511348,10.6071,84.847,84.794,10.82740846]
[1772190511548,2.59673387,84.85,84.794,10.82740846]
[1772190512149,12.08,84.86,84.824,10.82740846]
[1772190514454,14.67673387,84.86,84.824,10.82740846]
[1772190514652,12.08,84.86,84.824,10.82740846]
[1772190515658,12.08,84.86,84.832,10.6087]
[1772190515857,12.08,84.86,84.824,10.82740846]
[1772190516158,10.79690072,84.876,84.824,10.82740846]
[1772190516355,2.59673387,84.88,84.839,10.82740846]
[1772190517157,2.59673387,84.87,84.821,10.82740846]
[1772190517953,2.59673387,84.86,84.821,10.82740846]
[1772190518254,13.00093232,84.86,84.821,10.82740846]
[1772190518854,13.00093232,84.86,84.822,10.61]
[1772190519659,10.40419845,84.878,84.829,10.75187361]
[1772190520356,2.59673387,84.88,84.829,10.75187361]
[1772190520755,13.53720601,84.88,84.829,10.75187361]
[1772190521157,13.53720601,84.87,84.829,10.75187361]
[1772190521951,13.53720601,84.87,84.816,10.39105458]
[1772190522154,2.59673387,84.86,84.816,10.39105458]
[1772190522958,2.59673387,84.86,84.826,10.6095]
[1772190523157,21.54477214,84.869,84.826,10.6095]
[1772190523661,10.6032,84.877,84.833,20.99975458]
[1772190524061,13.53720601,84.86,84.815,10.39105458]
[1772190524662,13.53720601,84.86,84.818,10.6105]
[1772190525262,10.6055,84.859,84.818,10.6105]
[1772190525469,21.54597214,84.859,84.818,10.6105]
[1772190525666,10.94047214,84.858,84.818,10.6105]
[1772190526362,10.94047214,84.858,84.818,21.00155458]
[1772190528167,10.94047214,84.858,84.822,10.6101]
[1772190530174,2.59235755,84.85,84.822,10.6101]
[1772190530469,10.94047214,84.858,84.822,10.6101]
[1772190531773,2.59235755,84.86,84.829,10.6091]
[1772190532266,2.59235755,84.88,84.837,10.6081]
[1772190532467,13.53282969,84.88,84.83,10.39105458]
[1772190532668,2.59235755,84.89,84.83,12.98341213]
[1772190533965,2.59235755,84.89,84.849,10.6066]
[1772190535574,2.59235755,84.89,84.853,10.6062]
[1772190537970,2.59235755,84.89,84.855,10.6059]
[1772190539286,10.94047214,84.893,84.861,10.6051]
[1772190539780,2.59235755,84.88,84.854,10.606]
[1772190539978,2.59235755,84.87,84.842,10.39105458]
[1772190540372,2.59235755,84.87,84.81,2.59235755]
[1772190540373,2.59235755,84.85,84.801,10.39105458]
[1772190540580,10.94047214,84.86,84.801,10.39105458]
[1772190540581,13.53282969,84.86,84.801,10.39105458]
[1772190542079,13.53282969,84.86,84.824,10.6098]
[1772190542383,2.59235755,84.85,84.808,10.39105458]
[1772190543379,13.19895755,84.85,84.808,10.39105458]
[1772190543583,2.59235755,84.84,84.808,10.39105458]
[1772190544680,10.94047214,84.849,84.81,10.6116]
[1772190545882,10.94047214,84.849,84.81,21.00265458]
[1772190547286,10.94047214,84.849,84.81,10.39105458]
[1772190548782,2.59235755,84.86,84.81,10.39105458]
[1772190549177,10.94047214,84.868,84.825,10.39105458]
[1772190549489,2.59235755,84.88,84.825,10.39105458]
[1772190550889,2.59235755,84.87,84.825,10.39105458]
[1772190551988,2.59235755,84.87,84.831,10.98754832]
[1772190552780,10.4552898,84.878,84.835,10.98754832]
[1772190553589,10.4552898,84.877,84.835,10.98754832]
[1772190553792,2.59235755,84.87,84.835,10.98754832]
[1772190554392,2.59235755,84.87,84.837,10.6081]
[1772190556691,2.59235755,84.87,84.837,21.59564832]
[1772190558098,2.59235755,84.87,84.838,10.98754832]
[1772190558294,10.4552898,84.869,84.837,10.6081]
[1772190558801,10.4552898,84.869,84.834,10.98754832]
[1772190561305,10.4552898,84.869,84.836,10.6083]
[1772190563498,10.4552898,84.849,84.801,10.98754832]
[1772190565108,21.0620898,84.849,84.807,10.98754832]
[1772190565300,10.4552898,84.848,84.807,10.98754832]
[1772190565502,2.59235755,84.84,84.807,10.98754832]
[1772190566509,10.6077,84.842,84.807,10.98754832]
[1772190566807,2.59235755,84.84,84.807,10.98754832]
[1772190567113,2.59235755,84.83,84.807,10.98754832]
[1772190567608,2.59235755,84.83,84.803,10.6124]
[1772190568408,2.59235755,84.84,84.803,21.59994832]
[1772190569605,2.59235755,84.83,84.803,21.59994832]
[1772190570214,2.59235755,84.84,84.803,21.59994832]
[1772190570410,2.59235755,84.82,84.786,10.98754832]
[1772190571101,2.59235755,84.83,84.793,10.98754832]
[1772190572508,2.59235755,84.83,84.794,10.6135]
[1772190573218,2.59235755,84.83,84.799,10.98754832]
[1772190573418,10.607,84.847,84.799,10.98754832]
[1772190573608,2.59235755,84.84,84.799,10.98754832]
[1772190574914,2.59235755,84.84,84.808,10.6118]
[1772190575112,2.59235755,84.84,84.799,10.98754832]
[1772190576018,2.59235755,84.84,84.802,10.98754832]
[1772190578118,2.59235755,84.84,84.804,10.98754832]
[1772190578517,2.59235755,84.84,84.807,10.09291422]
[1772190578911,10.17605038,84.879,84.807,10.09291422]
[1772190579108,2.59235755,84.84,84.791,10.09291422]
[1772190579313,2.59235755,84.83,84.791,10.09291422]
[1772190579515,12.76840793,84.83,84.791,10.09291422]
[1772190579911,12.76840793,84.83,84.792,10.6137]
[1772190580116,12.76840793,84.83,84.792,20.98841855]
[1772190582116,12.76840793,84.83,84.794,10.6135]
[1772190582319,2.59235755,84.83,84.795,10.37471855]
[1772190583918,2.59235755,84.83,84.8,10.6127]
[1772190585121,2.59235755,84.83,84.804,10.37471855]
[1772190585422,2.59235755,84.84,84.804,10.37471855]
[1772190585621,2.59235755,84.84,84.812,10.37471855]
[1772190585820,10.832793,84.849,84.812,10.37471855]
[1772190586913,10.832793,84.849,84.813,10.6112]
[1772190587917,2.59321553,84.85,84.813,10.6112]
[1772190588116,2.59321553,84.85,84.79,2.59321553]
[1772190588117,2.59321553,84.85,84.819,20.98511855]
[1772190588318,2.59321553,84.86,84.82,10.37471855]
[1772190588512,16.96321553,84.88,84.82,12.96793408]
[1772190588721,16.96321553,84.88,84.841,20.98241855]
[1772190589213,16.96321553,84.88,84.842,10.37471855]
[1772190590623,10.832793,84.869,84.829,10.37471855]
[1772190591928,10.832793,84.859,84.817,10.37471855]
[1772190593119,10.832793,84.859,84.817,20.98531855]
[1772190593322,10.832793,84.859,84.818,10.37471855]
[1772190594923,10.832793,84.859,84.821,10.37471855]
[1772190595128,14.37,84.88,84.821,10.37471855]
[1772190595129,2.59321553,84.87,84.821,10.37471855]
[1772190595927,2.59321553,84.87,84.832,10.37471855]
[1772190596825,10.832793,84.872,84.832,10.37471855]
[1772190597421,10.832793,84.868,84.826,10.37471855]
[1772190598430,10.832793,84.839,84.786,10.37471855]
[1772190598626,2.59321553,84.83,84.786,10.37471855]
[1772190599725,2.59321553,84.83,84.794,10.6135]
[1772190600334,10.832793,84.839,84.799,20.98761855]
[1772190600832,10.832793,84.839,84.8,10.37471855]
[1772190602121,10.832793,84.839,84.738,35.39]
[1772190602122,10.832793,84.861,84.782,10.37471855]
[1772190602329,10.832793,84.819,84.769,10.37471855]
[1772190602933,14.43600597,84.872,84.73,62.0]
[1772190602934,2.59321553,84.8,84.757,10.37471855]
[1772190603131,2.59321553,84.79,84.757,10.37471855]
[1772190603330,13.42600853,84.8,84.757,10.37471855]
[1772190603735,10.832793,84.817,84.757,10.37471855]
[1772190603934,2.59321553,84.81,84.766,10.37471855]
[1772190604436,10.832793,84.817,84.766,10.37471855]
[1772190605134,10.832793,84.817,84.772,10.37471855]
[1772190605441,2.59321553,84.79,84.731,10.37471855]
[1772190605737,2.59321553,84.76,84.731,10.37471855]
[1772190605937,2.59321553,84.77,84.731,10.37471855]
[1772190607135,2.59321553,84.77,84.732,10.6213]
[1772190607437,2.59321553,84.77,84.731,10.37471855]
[1772190607637,2.59321553,84.76,84.731,10.37471855]
[1772190607938,2.59321553,84.77,84.731,10.37471855]
[1772190610727,13.28126005,84.77,84.731,10.37471855]
[1772190610928,2.59321553,84.76,84.724,10.6223]
[1772190611531,2.59321553,84.77,84.737,10.6207]
[1772190612132,2.59321553,84.78,84.744,10.6198]
[1772190612438,2.59321553,84.78,84.744,20.61120604]
[1772190613435,2.59321553,84.78,84.751,10.6188]
[1772190613639,2.59321553,84.79,84.751,10.6188]
[1772190613938,2.59321553,84.79,84.752,9.99140604]
[1772190614129,10.68804452,84.798,84.756,9.99140604]
[1772190614731,2.59321553,84.8,84.756,9.99140604]
[1772190615236,2.59321553,84.8,84.764,10.6172]
[1772190617930,2.59321553,84.8,84.756,9.99140604]
[1772190618134,2.59321553,84.79,84.756,9.99140604]
[1772190618331,2.59321553,84.8,84.756,9.99140604]
[1772190618931,2.59321553,84.8,84.758,10.6181]
[1772190619132,2.59321553,84.8,84.759,9.99140604]
[1772190619738,2.59321553,84.8,84.766,10.617]
[1772190620538,10.68804452,84.811,84.773,9.99140604]
[1772190620743,2.59321553,84.81,84.773,9.99140604]
[1772190621135,2.59321553,84.82,84.781,9.99140604]
[1772190621639,2.59321553,84.82,84.788,10.6142]
[1772190621842,10.68804452,84.826,84.788,10.6142]
[1772190622345,2.59321553,84.83,84.794,9.99140604]
[1772190623950,10.6094,84.828,84.794,9.99140604]
[1772190626949,2.59321553,84.83,84.794,9.99140604]
[1772190630354,10.6092,84.829,84.794,9.99140604]
[1772190630643,13.28126005,84.83,84.795,10.6135]
[1772190631750,13.28126005,84.83,84.795,20.60490604]
[1772190633650,2.59321553,84.82,84.788,10.6143]
[1772190635654,2.59321553,84.82,84.781,20.60650604]
[1772190636953,2.59321553,84.8,84.757,9.99140604]
[1772190638254,2.59321553,84.81,84.757,9.99140604]
[1772190638454,2.59321553,84.8,84.757,9.99140604]
[1772190640153,2.59321553,84.8,84.761,10.01105212]
[1772190640955,2.59321553,84.79,84.747,10.01105212]
[1772190642458,2.59321553,84.79,84.73,2.59321553]
[1772190642459,2.59321553,84.77,84.729,10.01105212]
[1772190643957,2.59321553,84.77,84.73,10.6215]
[1772190644155,2.59321553,84.77,84.731,10.01105212]
[1772190644856,2.59321553,84.77,84.732,10.6213]
[1772190645451,2.59321553,84.77,84.732,20.63235212]
[1772190646560,2.59321553,84.77,84.734,10.01105212]
[1772190646959,2.59321553,84.78,84.734,10.01105212]
[1772190647259,2.59709026,84.78,84.734,10.01105212]
[1772190647859,2.59709026,84.78,84.741,10.6201]
[1772190648060,2.59709026,84.78,84.742,10.01105212]
[1772190650861,2.59709026,84.78,84.744,10.01105212]
[1772190656265,2.59709026,84.78,84.747,10.01105212]
[1772190656866,2.59709026,84.78,84.748,10.6192]
[1772190657068,2.59709026,84.78,84.748,20.63025212]
[1772190657864,2.59709026,84.78,84.749,10.01105212]
[1772190660572,2.59709026,84.78,84.75,10.619]
[1772190661064,10.613,84.799,84.765,10.01105212]
[1772190661263,2.59709026,84.81,84.765,10.01105212]
[1772190661665,2.59709026,84.81,84.78,10.6153]
[1772190661870,2.59709026,84.81,84.781,10.01105212]
[1772190664473,2.59709026,84.81,84.782,10.615]
[1772190664673,2.59709026,84.82,84.783,10.01105212]
[1772190666074,2.59709026,84.81,84.783,10.01105212]
[1772190669479,13.20749026,84.82,84.783,10.01105212]
[1772190672374,13.20749026,84.82,84.784,10.6147]
[1772190674976,10.6111,84.815,84.783,10.01105212]
[1772190675177,10.6111,84.815,84.714,165.255]
[1772190675178,2.59709026,84.79,84.751,10.64794141]
[1772190675568,13.24885036,84.8,84.751,10.64794141]
[1772190675970,13.24885036,84.8,84.764,10.6173]
[1772190680374,13.24885036,84.8,84.765,10.64794141]
[1772190680686,13.24885036,84.8,84.767,21.26484141]
[1772190682584,2.59709026,84.8,84.768,10.64794141]
[1772190683578,2.59709026,84.8,84.771,10.64794141]
[1772190683779,13.24885036,84.81,84.771,10.64794141]
[1772190684787,2.59709026,84.8,84.771,10.64794141]
[1772190684988,2.59709026,84.8,84.772,10.6163]
[1772190686689,2.59709026,84.8,84.772,21.26424141]
[1772190687889,2.59709026,84.8,84.746,10.64794141]
[1772190687890,2.59709026,84.79,84.746,10.64794141]
[1772190688287,13.24885036,84.8,84.746,10.64794141]
[1772190689196,10.6517601,84.797,84.76,10.6178]
[1772190689504,13.24885036,84.79,84.746,10.64794141]
[1772190690905,2.59709026,84.78,84.746,10.64794141]
[1772190691204,13.24885036,84.78,84.746,10.64794141]
[1772190692307,2.59709026,84.78,84.748,10.64794141]
[1772190693708,13.24885036,84.78,84.739,10.6204]
[1772190693904,2.59709026,84.77,84.74,10.64794141]
[1772190694206,2.59709026,84.78,84.74,10.64794141]
[1772190695611,21.219,84.827,84.749,10.64794141]
[1772190695612,10.6517601,84.804,84.749,10.64794141]
[1772190695811,2.59709026,84.79,84.749,10.64794141]
[1772190696911,2.59709026,84.79,84.756,10.6182]
[1772190697114,2.59709026,84.77,84.721,10.64794141]
[1772190697413,2.59709026,84.76,84.721,10.64794141]
[1772190697711,2.59709026,84.77,84.721,10.64794141]
[1772190698110,2.59709026,84.77,84.74,10.6202]
[1772190699211,2.59709026,84.76,84.704,10.01181721]
[1772190699416,2.59709026,84.77,84.711,10.01181721]
[1772190700708,12.6476881,84.78,84.739,9.94420241]
[1772190700914,2.59709026,84.78,84.739,9.94420241]
[1772190702017,2.59709026,84.78,84.747,9.94420241]
[1772190702415,2.59709026,84.79,84.747,9.94420241]
[1772190702918,10.81798844,84.818,84.747,9.94420241]
[1772190702919,2.59709026,84.78,84.747,9.94420241]
[1772190703118,2.59709026,84.77,84.747,9.94420241]
[1772190704219,2.59709026,84.78,84.747,9.94420241]
[1772190705921,2.59709026,84.78,84.748,10.6193]
[1772190707221,2.59718264,84.78,84.748,10.6193]
[1772190707420,2.59718264,84.78,84.752,9.94420241]
[1772190707827,2.59718264,84.79,84.752,9.94420241]
[1772190708216,2.59718264,84.78,84.752,9.94420241]
[1772190709224,2.59718264,84.78,84.753,10.6187]
[1772190709626,2.59718264,84.78,84.753,20.56290241]
[1772190709829,2.59718264,84.78,84.755,10.6184]
[1772190710521,13.51485414,84.79,84.755,20.56260241]
[1772190710729,13.51485414,84.79,84.756,9.94420241]
[1772190712131,10.9176715,84.789,84.756,9.94420241]
[1772190712331,2.59718264,84.78,84.756,9.94420241]
[1772190714732,10.6145,84.787,84.756,9.94420241]
[1772190716126,10.9176715,84.786,84.748,10.6193]
[1772190716327,2.59718264,84.77,84.71,2.59718264]
[1772190716635,2.59718264,84.79,84.73,2.59718264]
[1772190716834,13.51485414,84.8,84.74,2.59718264]
[1772190717334,13.51485414,84.8,84.761,10.6177]
[1772190718933,24.12775414,84.8,84.761,10.6177]
[1772190720335,24.12775414,84.8,84.761,20.56190241]
[1772190720932,2.59718264,84.81,84.767,9.94420241]
[1772190721135,10.9176715,84.826,84.771,9.94420241]
[1772190721440,10.9176715,84.838,84.781,9.94420241]
[1772190721637,9.90902446,84.837,84.8,9.94420241]
[1772190721933,9.90902446,84.836,84.8,9.94420241]
[1772190722140,2.59718264,84.86,84.801,9.94420241]
[1772190722334,2.59718264,84.85,84.801,9.94420241]
[1772190722727,10.9176715,84.849,84.77,2.59718264]
[1772190723037,13.51485414,84.82,84.771,9.94420241]
[1772190724435,2.59718264,84.81,84.772,10.6163]
[1772190726736,2.59718264,84.83,84.78,9.94420241]
[1772190727534,10.9176715,84.831,84.78,12.54138505]
[1772190727738,10.9176715,84.831,84.781,9.94420241]
[1772190727936,10.9176715,84.831,84.788,10.6142]
[1772190728337,10.9176715,84.819,84.768,9.94420241]
[1772190728538,10.9176715,84.819,84.779,10.6155]
[1772190730238,10.9176715,84.819,84.779,20.99872546]
[1772190730440,10.9176715,84.819,84.786,10.6146]
[1772190731736,2.59718264,84.83,84.786,20.99782546]
[1772190732529,2.59718264,84.83,84.786,10.6146]
[1772190732735,2.59718264,84.83,84.794,10.6136]
[1772190732937,2.59718264,84.84,84.795,10.38322546]
[1772190733137,9.94693142,84.85,84.808,10.6118]
[1772190734132,9.94693142,84.85,84.809,10.38322546]
[1772190734738,12.54411406,84.85,84.809,10.38322546]
[1772190734943,12.54411406,84.85,84.81,10.6115]
[1772190735141,9.94693142,84.85,84.81,10.38322546]
[1772190735539,10.6067,84.849,84.81,10.38322546]
[1772190735740,9.94693142,84.848,84.808,10.6118]
[1772190736438,9.94693142,84.846,84.799,10.6128]
[1772190736647,9.94693142,84.839,84.799,10.6128]
[1772190737639,9.94693142,84.839,84.797,10.38322546]
[1772190741039,9.94693142,84.839,84.798,10.613]
[1772190741439,10.6079,84.84,84.802,10.6125]
[1772190741640,2.59718264,84.85,84.803,10.38322546]
[1772190741845,12.54411406,84.85,84.803,10.38322546]
[1772190742044,9.94693142,84.849,84.803,10.38322546]
[1772190743045,9.94693142,84.847,84.803,20.99562546]
[1772190743938,10.6073,84.844,84.803,20.99562546]
[1772190744540,20.55423142,84.844,84.803,20.99562546]
[1772190745147,9.94693142,84.844,84.809,10.6116]
[1772190746442,9.94693142,84.844,84.817,10.6107]
[1772190747247,9.94693142,84.844,84.813,10.6112]
[1772190747436,9.94693142,84.844,84.803,10.38322546]
[1772190748941,10.6075,84.843,84.805,10.6122]
[1772190751646,20.55443142,84.843,84.805,10.6122]
[1772190752049,2.59718264,84.85,84.803,10.38322546]
[1772190752247,9.94693142,84.829,84.79,10.38322546]
[1772190753953,9.94693142,84.819,84.771,10.38322546]
[1772190754955,9.94693142,84.819,84.785,10.6147]
[1772190758655,10.67300783,84.816,84.778,10.15688125]
[1772190759450,10.67300783,84.809,84.75,10.15688125]
[1772190759650,10.67300783,84.789,84.737,10.15688125]
[1772190760051,10.67300783,84.789,84.747,10.82242393]
[1772190760256,10.4286635,84.801,84.751,10.82242393]
[1772190760451,2.59718264,84.8,84.751,10.82242393]
[1772190760756,2.59718264,84.79,84.751,10.82242393]
[1772190763252,2.59718264,84.78,84.74,10.6203]
[1772190763455,13.02584614,84.78,84.737,10.82242393]
[1772190763648,13.02584614,84.78,84.69,83.2533]
[1772190763649,10.4286635,84.769,84.69,62.0]
[1772190763957,21.47915825,84.82,84.614,165.4508]
[1772190763958,10.4286635,84.749,84.701,10.82242393]
[1772190764257,10.4286635,84.748,84.701,10.82242393]
[1772190764452,10.4286635,84.748,84.69,2.59718264]
[1772190764757,10.4286635,84.739,84.687,10.82242393]
[1772190764951,10.4286635,84.738,84.687,10.82242393]
[1772190765347,10.4286635,84.738,84.68,2.59718264]
[1772190765750,10.4286635,84.735,84.69,13.41960657]
[1772190766251,10.4286635,84.755,84.701,10.82242393]
[1772190767957,10.4286635,84.753,84.701,10.82242393]
[1772190768162,10.4286635,84.749,84.691,10.82242393]
[1772190768661,10.4286635,84.748,84.693,10.82242393]
[1772190769556,10.4286635,84.744,84.694,10.626]
[1772190769859,10.4286635,84.744,84.694,10.82242393]
[1772190770057,10.4286635,84.744,84.7,13.42162447]
[1772190770660,10.4286635,84.744,84.7,10.82242393]
[1772190771061,10.4286635,84.739,84.683,10.82242393]
[1772190772857,2.59920054,84.75,84.695,10.82242393]
[1772190773164,10.4286635,84.753,84.701,10.82242393]
[1772190773863,10.4286635,84.753,84.702,10.625]
[1772190774260,10.4286635,84.75,84.702,10.625]
[1772190775760,10.619,84.751,84.705,10.82242393]
[1772190777160,10.4286635,84.75,84.704,10.6248]
[1772190777367,9.69151859,84.808,84.65,62.0]
[1772190777368,10.4286635,84.724,84.68,10.6278]
[1772190778066,10.4286635,84.724,84.685,10.6271]
[1772190780265,10.4286635,84.752,84.701,10.82242393]
[1772190780461,10.4286635,84.752,84.711,10.82242393]
[1772190781270,10.4286635,84.779,84.72,13.42162447]
[1772190781469,10.4286635,84.779,84.73,13.42162447]
[1772190781970,164.9935,84.85,84.667,165.3474]
[1772190781971,10.4286635,84.797,84.75,2.59920054]
[1772190782171,10.4286635,84.797,84.75,13.42162447]
[1772190782564,10.6122,84.805,84.754,10.82242393]
[1772190782765,10.6122,84.805,84.76,13.42162447]
[1772190782966,35.42,84.849,84.693,165.2963]
[1772190782967,10.4286635,84.826,84.77,13.42162447]
[1772190783766,10.4286635,84.826,84.78,13.42162447]
[1772190784874,10.4286635,84.826,84.765,10.82242393]
[1772190785572,10.4286635,84.814,84.765,10.82242393]
[1772190786869,10.6119,84.808,84.765,10.82242393]
[1772190788475,21.0405635,84.808,84.765,10.82242393]
[1772190788667,10.4286635,84.808,84.765,10.82242393]
[1772190789576,10.6123,84.805,84.765,10.82242393]
[1772190790677,10.4286635,84.808,84.765,21.43952393]
[1772190791069,10.4286635,84.808,84.766,9.96219235]
[1772190791878,10.4286635,84.808,84.768,10.6168]
[1772190792179,8.39,84.809,84.769,9.96219235]
[1772190792371,10.29266246,84.837,84.769,9.96219235]
[1772190793876,10.29266246,84.837,84.785,10.6146]
[1772190794073,10.29266246,84.837,84.786,9.96219235]
[1772190794872,10.29266246,84.837,84.79,20.57619235]
[1772190795073,10.29266246,84.837,84.791,9.96219235]
[1772190796680,10.29266246,84.837,84.8,10.6128]
[1772190797773,10.29266246,84.837,84.793,10.6137]
[1772190798979,10.29266246,84.837,84.791,9.96219235]
[1772190798980,10.6097,84.826,84.791,9.96219235]
[1772190799185,10.29266246,84.825,84.78,9.96219235]
[1772190799487,10.29266246,84.849,84.78,9.96219235]
[1772190800585,10.29266246,84.842,84.797,10.6132]
[1772190801175,10.6079,84.84,84.797,10.6132]
[1772190802686,10.29266246,84.839,84.801,10.6126]
[1772190805884,10.6083,84.836,84.797,9.96219235]
[1772190806786,6.48792096,84.87,84.794,10.6136]
[1772190806787,10.29266246,84.833,84.794,10.6136]
[1772190807085,10.29266246,84.833,84.787,10.6144]
[1772190807290,12.88755431,84.82,84.771,9.96219235]
[1772190807586,10.29266246,84.819,84.771,9.96219235]
[1772190808090,10.29266246,84.799,84.757,9.96219235]
[1772190808983,10.29266246,84.799,84.757,20.58039235]
[1772190810093,10.29266246,84.809,84.761,9.96219235]
[1772190810993,10.29266246,84.809,84.769,20.57879235]
[1772190812690,10.29266246,84.809,84.77,9.96219235]
[1772190813396,10.29266246,84.809,84.757,9.96219235]
[1772190814883,10.29266246,84.805,84.764,10.6173]
[1772190815087,10.29266246,84.819,84.761,9.96219235]
[1772190815291,10.29266246,84.819,84.771,9.96219235]
[1772190815796,10.29266246,84.819,84.78,2.59489185]
[1772190815997,10.6094,84.828,84.781,9.96219235]
[1772190816887,10.29266246,84.832,84.781,9.96219235]
[1772190817096,10.29266246,84.832,84.759,21.2358]
[1772190817097,10.29266246,84.849,84.8,2.59489185]
[1772190817498,10.29266246,84.864,84.811,9.96219235]
[1772190817702,10.29266246,84.879,84.83,2.59489185]
[1772190817890,10.29266246,84.879,84.83,12.5570842]
[1772190818894,10.6031,84.878,84.83,12.5570842]
[1772190819095,10.29266246,84.879,84.84,2.59489185]
[1772190819291,304.42504674,84.908,84.841,10.13934462]
[1772190819500,293.77859594,84.908,84.865,10.13934462]
[1772190819697,10.6464508,84.907,84.841,10.13934462]
[1772190820200,10.6464508,84.907,84.857,10.6056]
[1772190820400,10.6464508,84.907,84.841,10.13934462]
[1772190821497,10.6464508,84.907,84.857,10.6056]
[1772190821896,10.6464508,84.907,84.855,10.64541121]
[1772190822298,10.6464508,84.907,84.866,10.6045]
[1772190822503,10.6464508,84.907,84.855,10.64541121]
[1772190823095,293.77859594,84.908,84.865,10.64541121]
[1772190824803,293.77859594,84.908,84.866,10.6046]
[1772190826801,293.77859594,84.908,84.87,10.604]
[1772190827399,293.77859594,84.908,84.867,10.64541121]
[1772190828805,293.77859594,84.908,84.868,10.6043]
[1772190830706,10.29775806,84.907,84.859,10.6054]
[1772190831607,10.29775806,84.907,84.86,10.64541121]
[1772190832907,10.29775806,84.907,84.87,10.604]
[1772190833405,10.29775806,84.907,84.86,10.64541121]
[1772190835007,10.29775806,84.907,84.863,10.605]
[1772190837011,10.29775806,84.907,84.867,10.6043]
[1772190839506,293.77859594,84.908,84.874,10.64541121]
[1772190839708,275.38099594,84.908,84.874,10.64541121]
[1772190840007,275.38099594,84.908,84.875,10.6034]
[1772190840403,275.38099594,84.908,84.874,10.64541121]
[1772190841116,275.38099594,84.908,84.874,21.24891121]
[1772190841510,275.38099594,84.908,84.881,10.6026]
[1772190841912,10.29775806,84.92,84.874,10.64541121]
[1772190842112,10.29775806,84.946,84.896,10.64541121]
[1772190842514,10.29775806,84.939,84.899,10.6003]
[1772190843817,10.29775806,84.929,84.891,10.6014]
[1772190845116,2.58879212,84.94,84.895,10.601]
[1772190845319,10.29775806,84.941,84.895,21.24641121]
[1772190846710,2.58879212,84.94,84.895,21.24641121]
[1772190846915,12.88655018,84.94,84.895,21.24641121]
[1772190847119,10.29775806,84.939,84.902,10.6]
[1772190848319,10.29775806,84.935,84.895,10.64541121]
[1772190848521,10.29775806,84.929,84.881,10.64541121]
[1772190849222,10.29775806,84.919,84.867,10.64541121]
[1772190849421,2.58879212,84.89,84.836,10.64541121]
[1772190849619,10.29775806,84.849,84.784,10.64541121]
[1772190849928,2.58879212,84.83,84.784,10.64541121]
[1772190850225,2.58879212,84.82,84.769,9.8717711]
[1772190850423,10.44416704,84.819,84.769,9.8717711]
[1772190851425,10.44416704,84.849,84.769,9.8717711]
[1772190851722,10.44416704,84.869,84.781,9.8717711]
[1772190852727,10.44416704,84.869,84.808,9.8717711]
[1772190853921,10.44416704,84.869,84.814,10.6111]
[1772190854427,10.6044,84.868,84.814,10.6111]
[1772190854634,10.44416704,84.867,84.814,10.6111]
[1772190855630,10.44416704,84.867,84.816,10.6108]
[1772190857032,10.44416704,84.867,84.806,10.612]
[1772190858226,10.44416704,84.867,84.816,10.6108]
[1772190861032,10.44416704,84.867,84.824,10.6098]
[1772190861231,10.44416704,84.867,84.824,20.4815711]
[1772190863122,10.44416704,84.867,84.815,10.6109]
[1772190863926,10.44416704,84.865,84.795,9.8717711]
[1772190864127,10.44416704,84.849,84.778,9.8717711]
[1772190864326,10.44416704,84.849,84.748,9.8717711]
[1772190864533,6.48708444,84.85,84.748,9.8717711]
[1772190864534,10.44416704,84.831,84.779,10.6155]
[1772190864923,6.48708444,84.83,84.724,9.8717711]
[1772190865128,10.44416704,84.8,84.724,9.8717711]
[1772190865731,10.44416704,84.778,84.724,9.8717711]
[1772190866927,21.05996704,84.777,84.724,9.8717711]
[1772190867229,10.44416704,84.776,84.724,9.8717711]
[1772190867431,10.44416704,84.774,84.717,10.6231]
[1772190869134,6.48708444,84.79,84.717,10.6231]
[1772190869135,10.44416704,84.771,84.717,10.6231]
[1772190869734,10.6167,84.77,84.707,10.6244]
[1772190870032,10.44416704,84.769,84.707,10.6244]